Cogmind - Beta 15 @@@ ROGUE MODE // 2025.06.13 @ 18:45:13 Player: N.W.L. Result: Destroyed by N3-9JP(R) with Subdweller Beam Cannon Performance ------------- Evolutions (0) 0 Regions Visited (2) 400 Robots Destroyed (35) 175 Value Destroyed (773) 773 Prototype IDs (0) 0 Alien Tech Used (0) 0 Bonus (0) 0 TOTAL SCORE: 1348 Bonus ------- None Cogmind --------- Core Integrity 0/250 Matter 160/300 Energy 248/250 System Corruption 0% Temperature Hot (285) Movement Rolling (100) Location -10/Subcaves Parts ------- > --- POWER (1) -------- Ion Engine > --- PROPULSION (2) --- Armored Wheel Subdweller Monowheel > --- UTILITY (2) ------ (None) > --- WEAPON (2) ------- (None) > --- INVENTORY (5) ---- Light Ion Engine Light Treads Light Treads Seismic Detector Peak State ------------ > --- POWER ------------ Ion Engine > --- PROPULSION ------- Light Treads Light Treads > --- UTILITY ---------- Huge Storage Unit Seismic Detector > --- WEAPON ----------- Autogun Autogun > --- INVENTORY -------- Ion Engine Ion Engine Light Ion Engine Light Treads Armored Wheel Armored Wheel Heat Sink Small Storage Unit Terrain Scan Processor Terrain Scan Processor Hacking Suite Hacking Suite Heavy EM Pulse Gun Heavy EM Pulse Gun Heavy Assault Rifle Heavy Assault Rifle Heavy Assault Rifle Autogun Autogun EMP Blaster EMP Blaster Datajack Mining Laser [Rating: 13] Favorites ----------- Power Ion Engine Engine Ion Engine Propulsion Light Treads Treads Light Treads Wheel Armored Wheel Utility Seismic Detector Device Seismic Detector Storage Huge Storage Unit Protection Scrap Shield Weapon Autogun Energy Gun Small Laser Ballistic Gun Autogun Launcher EMP Blaster Special Weapon Mining Laser Build | -11 -10 -10 ------- Run | Yrd Mat Sub Slots Evolved . | . . . Power . | . . . Propulsion . | . . . Utility . | . . . Weapon . | . . . Parts Attached 22 | 7 9 6 Power 3 | 1 . 2 Engine 3 | 1 . 2 Core . | . . . Reactor . | . . . Propulsion 4 | 2 . 2 Treads 2 | 2 . . Leg . | . . . Wheel 2 | . . 2 Hover . | . . . Flight . | . . . Utility 5 | 2 1 2 Device 1 | 1 . . Storage 2 | 1 1 . Processor . | . . . Hackware . | . . . Protection 2 | . . 2 Artifact . | . . . Weapon 10 | 2 8 . Energy Gun 1 | 1 . . Energy Cannon . | . . . Ballistic Gun 5 | 1 4 . Ballistic Cannon . | . . . Launcher 3 | . 3 . Special Weapon 1 | . 1 . Impact Weapon . | . . . Slashing Weapon . | . . . Piercing Weapon . | . . . Special Melee Weapon . | . . . Unidentified Prototypes . | . . . Parts Lost 5 | . . 5 Power 1 | . . 1 Propulsion . | . . . Utility 2 | . . 2 Weapon 2 | . . 2 Highest Loss Streak 5 | . . 5 To Critical Strikes . | . . . Average Backups 16 | 1 17 10 Power 1 | . 1 . Propulsion 2 | . 2 1 Utility 4 | . 4 2 Weapon 7 | . 8 4 Tool/Special . | . . . Unused Backups 21 | . 5 16 Power 3 | . 2 1 Propulsion 2 | . . 2 Utility 7 | . 1 6 Weapon 8 | . 2 6 Tool/Special 1 | . . 1 Average Slot Usage (%) 98 | . 99 78 Engine 13 | . 14 13 Treads 27 | . 28 16 Device 13 | . 14 5 Storage 13 | . 14 4 Ballistic Gun 22 | . 24 1 Launcher 3 | . 1 18 Special Weapon 1 | . 1 . Peak Build Rating 13 | 7 13 13 Average Rating 11 | 5 11 10 On Entrance 6 | . 7 13 Naked Turns . | . . . Heaviest Build 94 | 13 94 94 Greatest Support 40 | 40 40 40 Greatest Overweight (x) 2 | . 2 2 Average Overweight (x) 1 | . 1 . Largest Inventory Capacity 25 | 8 25 25 Average Capacity 20 | 6 21 10 Most Carried 25 | 3 25 24 Average Carried 16 | 1 17 8 Final Capacity 25 | 8 25 5 Final Carried 24 | 3 24 4 Class Distribution -------------------- 100% | Mutant Dominant Class ---------------- Mutant | -10/Materials Mutant | -10/Subcaves Resources | -11 -10 -10 ----------- Run | Yrd Mat Sub Matter Collected 857 | 274 544 39 Remotely . | . . . Salvage Created 1336 | 121 1051 164 Parts 79 | 6 63 10 Haulers Intercepted 2 | . 2 . Recyclers Shooed 1 | 1 . . Parts Field Recycled . | . . . Retrieved Matter . | . . . Parts Self-Destructed . | . . . Prevented . | . . . Kills | -11 -10 -10 ------- Run | Yrd Mat Sub Combat Hostiles Destroyed 20 | . 17 3 Guns 6 | . 6 . AOE 10 | . 9 1 Classes Destroyed 9 | 2 6 1 Worker 3 | . 3 . Tunneler 4 | 1 3 . Hauler 2 | . 2 . Recycler 1 | 1 . . Operator 2 | . 2 . Watcher 3 | . 3 . Swarmer 3 | . 3 . Grunt 14 | . 14 . Subdweller 3 | . . 3 Best Kill Streak 7 | 2 7 3 Combat Bots Only 5 | . 5 3 Max Kills in Single Turn 3 | 1 3 1 Gunslinging . | . . . Exploded 2 | . 2 1 Melee . | . . . Uniques/NPCs Destroyed . | . . . Combat | -11 -10 -10 -------- Run | Yrd Mat Sub Hostile Shots Fired 97 | . 38 59 Missed 30 | . 7 23 Hits 67 | . 31 36 Projectile 67 | . 31 36 Critical Strikes 6 | . 1 5 Damage Taken 1378 | . 403 975 Core 250 | . 58 192 Absorbed by Shields . | . . . Core Remaining (%) 100 | 100 . . Volleys Fired 74 | 4 56 14 Largest 2 | 2 2 2 Hottest 100 | 60 100 66 Shots Fired 127 | 8 101 18 Gun 80 | 8 72 . Cannon . | . . . Launcher 46 | . 28 18 Special 1 | . 1 . Kinetic 76 | 4 72 . Thermal 5 | 4 1 . Explosive . | . . . Electromagnetic 46 | . 28 18 Robot Hit Streak 11 | 4 10 11 Robot Miss Streak 3 | . 3 1 Penetration Max . | . . . Secondary Targets 1 | . 1 . Max Gunslinging Chain 1 | . 1 . Shots Hit Robots 66 | 4 51 11 Core Hits 49 | 3 41 5 Critical Kills . | . . . Critical Parts Destroyed 3 | . 3 . Critical Strikes 3 | . 3 . Destroy 3 | . 3 . Melee Attacks . | . . . Impact . | . . . Slashing . | . . . Piercing . | . . . Sneak Attacks . | . . . Combat Hostiles . | . . . Follow-up Attacks . | . . . Damage Inflicted 2086 | 40 1530 516 Guns 759 | 40 719 . Cannons . | . . . Explosions 1327 | . 811 516 Melee . | . . . Ramming . | . . . Kinetic 725 | 6 719 . Thermal 139 | 34 70 35 Explosive . | . . . Electromagnetic 1222 | . 741 481 Impact . | . . . Slashing . | . . . Piercing . | . . . Highest Corruption . | . . . Average Corruption . | . . . Corruption Purged . | . . . Corruption Blocked . | . . . Overload Shots . | . . . Overflow Damage 10 | . 10 . Projectiles . | . . . Explosions 10 | . 10 . Melee . | . . . Knockbacks . | . . . Impact . | . . . Kinetic . | . . . Secondary . | . . . Self-Inflicted Damage 5 | . 5 . Shots 1 | . 1 . Rammed . | . . . Targets Rammed . | . . . Kicked . | . . . Crushed . | . . . Highest Temperature 458 | 40 42 458 Average Temperature 48 | 25 9 255 Received Heat Transfer 1624 | . 207 1417 Effects 2 | . . 2 Energy Bleed 1 | . . 1 Short Circuit 1 | . . 1 Siege Activations . | . . . Martial Activations . | . . . Shielding Activations . | . . . Robots Disrupted . | . . . Combat Hostiles . | . . . Robots Corrupted 4 | . 2 2 Combat Hostiles 4 | . 2 2 Parts Fried 7 | . 4 3 Impact Corruptions . | . . . Robots Melted . | . . . Combat Hostiles . | . . . Parts Melted . | . . . Heat Transferred 275 | 75 150 50 Parts Sabotaged . | . . . Parts Stolen . | . . . Parts Stripped . | . . . Power Chain Reactions 3 | . 2 1 Alert | -11 -10 -10 ------- Run | Yrd Mat Sub Maximum Alert Level 1 | . 1 . Low Security (%) 94 | 100 94 . Level 1 5 | . 5 . Level 2 . | . . . Level 3 . | . . . Level 4 . | . . . Level 5 . | . . . High Security . | . . . Max Security . | . . . Peak Influence 246 | 10 246 . Initial . | . . . Average 53 | 1 55 . Influence Increases 582 | 10 572 . Destroy 0b10 Robot/C 340 | . 340 . Destroy 0b10 Robot/NC 75 | 10 65 . Destroy Leader 90 | . 90 . Successful Hack 12 | . 12 . Select Force Hacks 60 | . 60 . Destroy Structure 5 | . 5 . Influence Decreases 582 | 10 572 . Time Decay 572 | 10 562 . Lost Ally 10 | . 10 . Squads Dispatched 6 | . 6 . Investigation 5 | . 5 . Extermination . | . . . Reinforcement 1 | . 1 . Assault . | . . . Garrison . | . . . Intercept . | . . . Searches Triggered . | . . . Construction Impeded . | . . . Haulers Reinforced . | . . . Active Scanning Responses . | . . . Cargo Convoy Interrupts . | . . . Stealth | -11 -10 -10 --------- Run | Yrd Mat Sub Distress Signals 1 | . 1 . Communications Jammed . | . . . Distress Signals . | . . . Times Spotted 36 | . 26 10 Peak Tracking Total 5 | . 5 3 Tactical Retreats 3 | . . 3 Traps | -11 -10 -10 ------- Run | Yrd Mat Sub Traps Triggered 6 | . 6 . Indirectly 3 | . 3 . Trap Hack Attempts . | . . . Triggered . | . . . Disarmed . | . . . Reprogrammed . | . . . Reused . | . . . Traps Extracted . | . . . Installed . | . . . Triggered . | . . . Machines | -11 -10 -10 ---------- Run | Yrd Mat Sub Machines Disabled . | . . . Max in Single Turn . | . . . Machines Repaired . | . . . Machines Dismantled . | . . . Machines Sabotaged . | . . . Overloaded Fab Kills . | . . . Hacking | -11 -10 -10 --------- Run | Yrd Mat Sub Machines Accessed 7 | . 7 . Terminals 5 | . 5 . Fabricators . | . . . Repair Stations . | . . . Recycling Units 2 | . 2 . Scanalyzers . | . . . Garrison Access . | . . . Total Hacks 16 | . 16 . Successful 7 | . 7 . Failed 9 | . 9 . Catastrophic 1 | . 1 . Database Lockouts . | . . . Manual 15 | . 15 . Terminals 13 | . 13 . Fabricators . | . . . Repair Stations . | . . . Recycling Units 3 | . 3 . Scanalyzers . | . . . Garrison Access . | . . . Terminal Hacks . | . . . Fabricator Hacks . | . . . Repair Station Hacks . | . . . Recycling Unit Hacks 1 | . 1 . Retrieve Components 1 | . 1 . Scanalyzer . | . . . Garrison Access Hacks . | . . . Unauthorized Hacks 6 | . 6 . Terminals 4 | . 4 . Assimilate 1 | . 1 . Operators 1 | . 1 . Skim 2 | . 2 . Fabricators . | . . . Repair Stations . | . . . Recycling Units 2 | . 2 . Tunnel 2 | . 2 . Scanalyzers . | . . . Garrison Access . | . . . Data Cores Recovered 1 | . 1 . Used . | . . . Hacking Detections 6 | . 6 . Full Trace Events 1 | . 1 . Feedback Events . | . . . Feedback Blocked . | . . . Robot Schematics Acquired . | . . . Robots Built . | . . . Authchips . | . . . Time . | . . . Total Robot Build Rating . | . . . Part Schematics Acquired . | . . . Parts Built . | . . . Authchips . | . . . Time . | . . . Total Part Build Rating . | . . . Parts Repaired . | . . . Time . | . . . Parts Recycled . | . . . Recycled Matter . | . . . Retrieved Matter . | . . . Retrieved Components 4 | . 4 . Parts Scanalyzed . | . . . Part Schematics Acquired . | . . . Parts Damaged . | . . . Bothacking | -11 -10 -10 ------------ Run | Yrd Mat Sub Used RIF Installer . | . . . Robots Hacked . | . . . Non-combat . | . . . Combat . | . . . Robot Hacks Applied . | . . . Relay Couplers Released . | . . . Fabnet Peak Effective % . | . . . Robots Rewired . | . . . Allies Hacked . | . . . Hacks Repelled . | . . . Allies | -11 -10 -10 -------- Run | Yrd Mat Sub Total Allies 1 | . 1 . Largest Group 1 | . 1 . Highest-Rated Group 10 | . 10 . Highest-Rated Ally 10 | . 10 . Total Orders . | . . . Ally Attacks . | . . . Total Damage . | . . . Kills . | . . . Allies Corrupted . | . . . Allies Melted . | . . . Intel | -11 -10 -10 ------- Run | Yrd Mat Sub Active Infowar (turns) 2563 | 34 2522 7 Seismic 2563 | 34 2522 7 Robot Analysis Total . | . . . Derelict Logs Recovered 1 | . . 1 Drone Launches . | . . . Drone Recoveries . | . . . Exploration | -11 -10 -10 ------------- Run | Yrd Mat Sub Turns Passed 2797 | 89 2522 186 Spaces Moved 910 | 43 771 96 Core 3 | 3 . . Treads 817 | 40 771 6 Legs . | . . . Wheels 90 | . . 90 Hover . | . . . Flight . | . . . Fastest Speed 50 | 50 160 90 Average Speed 251 | 152 274 115 Slowest Speed 320 | 160 320 320 Overloaded Moves . | . . . Propulsion Burnouts . | . . . Robots Hopped . | . . . Potential Cave-ins . | . . . Cave-ins Triggered . | . . . Exploration Rate (%) 35 | 4 94 7 Regions Visited 2 Branch Regions 1 Pre-discovered Areas 2 | . 2 . Known Exits Taken . | . . . Unknown Exits Taken 2 | 1 1 . Scrap Searched . | . . . Spaces Dug 8 | . 1 7 Terrain Destroyed 10 | . 3 7 Melee . | . . . Projectile 1 | . 1 . AOE 9 | . 2 7 Terrain Rammed . | . . . Walls Destroyed . | . . . Machines Disabled . | . . . Actions | -11 -10 -10 --------- Run | Yrd Mat Sub Total 1300 | 56 1088 156 Wait 224 | . 207 17 Move 908 | 42 770 96 Hop . | . . . Pick Up 31 | 3 27 1 Fast Attach 15 | 7 2 6 Attach 2 | . . 2 Detach 7 | . 2 5 Swap 18 | . 15 3 Drop 17 | . 9 8 Fire 74 | 4 56 14 Melee . | . . . Ram . | . . . Kick . | . . . Crush . | . . . Escape Stasis . | . . . Rewire . | . . . Trap . | . . . Miscellaneous 4 | . . 4 Route ------- -11/Scrapyard -10/Materials (discovered 5 exits: [*Mat x3] / [*Min] / [*Sub]) -10/Subcaves History --------- Turn | Location | Event 8 | -11/Scrapyard | Discovered new exit (range 14) 90 | -11/Scrapyard | Entered Materials 295 | -10/Materials | Discovered new exit (range 13) 301 | -10/Materials | Build established: Mutant 478 | -10/Materials | Discovered new exit (range 7) 1327 | -10/Materials | Discovered new exit (range 12) 2403 | -10/Materials | Discovered new exit (range 6) 2519 | -10/Materials | Discovered new exit (range 8) 2612 | -10/Materials | Entered Subcaves 2613 | -10/Subcaves | Shifting Twisted Machinery released Sub. Monowheel 2613 | -10/Subcaves | Approached by a straggling Scientist 2614 | -10/Subcaves | Ambushed by Subdwellers from Twisted Machinery 2633 | -10/Subcaves | Learned location of 1 exit from Materials 2739 | -10/Subcaves | Core integrity fell below 50% 2751 | -10/Subcaves | Core integrity fell below 20% 2757 | -10/Subcaves | Shifting Twisted Machinery released Battle Rifle 2798 | -10/Subcaves | Destroyed by N3-9JP(R) with Subdweller Beam Cannon Last Messages --------------- 02736_ Critical hit (Meltdown: +290). 02738_ Acquired Scrap Shield. 02739_ QV-QCT(R) misfires. 02740_ Critical hit (Meltdown: +270). 02741_ Acquired Lgt. Ion Engine. 02742_ N3-9JP(R) misfires. 02743_ Lgt. Ion Engine broken. 02743_ Overheating: Short circuit. 02745_ EMP Blaster destroyed. 02746_ Overheating: Energy bleed (-10). 02747_ QV-QCT(R) misfires. 02750_ Subatomizers dissect the Corrupted Tech Extrapolator. Battle Rifle falls loose from the Twisted Machinery. 02759_ Acquired Sub. Monowheel. 02770_ Scrap Shield destroyed. 02788_ QV-QCT(R) IFF system glitched. 02790_ Critical hit (Meltdown: +260). 02792_ Critical hit (Meltdown: +300). 02796_ EMP Blaster destroyed. 02798_ 8D-QVZ(R) misfires. Map ----- +----------------------------------------------------+ | ?????????????????????????????????????????????????? | | ?????????????????????????????????????????????????? | | ?????????????????????????????????????????????????? | | ?????????????????????????????????????????????????? | | ?????????????????????????????????????????????????? | | ?????????????????????????????????????????????????? | | ?????????????????????????????????????????????????? | | ?????????????????????????????????????????????????? | | ?????????????????????????????????????????????????? | | ?????????????????????????????????????????????????? | | ?????????????????????????????????????????????????? | | ?????????????????????????????????????????????????? | | ?????????????????????????????????????????????????? | | ?????????????????????????????????????????????????? | | ???????????????????????###???????????????????????? | | ???????????????????????# ##?????????????????????? | | ????????????? ????#???? ?????????????????????? | | ????????????? ??## ??? ?????????????????????? | | ???????????? ## ???# ?????????????????????? | | ???????????? ?## ??????????????????????? | | ????????????? ## ??????????????????????? | | ??????????????# ??????????????????????? | | ???????????????# #??????????????????????? | | ????????????????# #??????????????????????? | | ???????????????????? #???####???#???????????? | | ???????????????????????# @###"" #### ???????????? | | ????????????########???# "" ???????????? | | ???????????## ## ##?## "" ??????????? | | ???????????# ### ## # "" ?????????? | | ???????????## ## ##??#### ["" ?????????? | | ????????????##### #??#### ""?????????? | | ???????????????## #### ""??????????# | | ???????????????# RRR## "####??????# | | ???????????????### ## # "##????? | | ????????????????## """""#??### | | ???????????????## ####" | | ???????????????# ### ## !!#"[%! | | ???????????????# ##?## #### [ !!|[ | | ???????????????# #???# ##??#"[=/[=! # | | ???????????????# #??## ##?? "![[![##"## | | ???????????????## ## ??# ###??###!=[!#####? | | ????????????????######## #?# ##??????##*[##????? | | ????????????????????????##?#####????????####?????? | | ?????????????????????????????????????????????????? | | ?????????????????????????????????????????????????? | | ?????????????????????????????????????????????????? | | ?????????????????????????????????????????????????? | | ?????????????????????????????????????????????????? | | ?????????????????????????????????????????????????? | | ?????????????????????????????????????????????????? | +----------------------------------------------------+ Best States ------------- Heat Dissipation 25 Energy Generation 10 Energy Capacity 250 Matter Stores 300 Matter Capacity 300 Sight Range 16 Terrain Scan Density 10 Armor Coverage 800 Evasion (%) 40 Recoil Reduction 2 Item Schematics ----------------- None Robot Schematics ------------------ None Fabricated ------------ Nothing Repaired ---------- Nothing Alien Tech Used ----------------- None Achievements -------------- None Challenges ------------ None Game ------ Seed StealthSalvagingArticulator Manual? 0 Play Time 00:15:47 Cumulative 513.0 hours Start 2025.06.11 @ 16:33:53 End 2025.06.13 @ 18:45:13 Sessions 2 Manual Loads 0 Difficulty Rogue Special Mode None Game No. 222 Rogue 222 Adventurer 0 Explorer 0 Win Type - Total 19 Types 10/2/6/1/0/0/0/0/0/0 Lore% 90 Gallery% 87 Achievement% 78 Wizard Run 0 Options --------- Layout 0 ASCII 0 Keyboard 1 Movement Numpad Keybinds 0 Fullscreen 2 Font 12/Smallcaps Map View 76x50 Zoom Use 0% Tactical HUD 1 Map Filters NONE Filters NONE Steam 1 RUN: d58bb18e-a9c9-4b5a-96a6-5ca73ae40515